fUSD/lending_fUSD_20250522
["ID","MTS","AMOUNT","RATE_DAILY","PERIOD"]
[362015302,1747936262799,-420.0,0.00034793,5]
[362015303,1747936262809,-420.0,0.00034793,5]
[362015304,1747936262819,-420.0,0.00034793,5]
[362015305,1747936262828,-420.0,0.00034793,5]
[362015306,1747936262838,-420.0,0.00034793,5]
[362015307,1747936262847,-536.6,0.00034793,5]
[362015308,1747936262856,-435.45787258,0.00034793,5]
[362015309,1747936262865,-420.0,0.00034793,5]
[362015310,1747936262875,-420.0,0.00034793,5]
[362015311,1747936262885,-461.7,0.00034793,5]
[362015312,1747936262895,-420.0,0.00034793,5]
[362015313,1747936262904,-476.39,0.00034793,5]
[362015314,1747936262913,-420.0,0.00034793,5]
[362015315,1747936262922,-420.0,0.00034793,5]
[362015316,1747936262931,-420.0,0.00034793,5]
[362015317,1747936262941,-746.94,0.00034793,5]
[362015318,1747936262950,-420.0,0.00034793,5]
[362015319,1747936262959,-244.02718142,0.00034793,5]
[362015320,1747936262969,-420.0,0.00034793,5]
[362015321,1747936262978,-420.0,0.00034793,5]
[362015322,1747936262988,-420.0,0.00034793,5]
[362015323,1747936262997,-420.0,0.00034793,5]
[362015324,1747936263006,-420.0,0.00034793,5]
[362015325,1747936263015,-420.0,0.00034793,5]
[362015326,1747936263024,-420.0,0.00034793,5]
[362015327,1747936263034,-420.0,0.00034793,5]
[362015328,1747936263043,-420.0,0.00034793,5]
[362015329,1747936263052,-452.73,0.00034793,5]
[362015330,1747936263062,-420.0,0.00034793,5]
[362015331,1747936263071,-420.0,0.00034793,5]
[362015332,1747936263081,-420.0,0.00034793,5]
[362015333,1747936263091,-420.0,0.00034793,5]
[362015334,1747936263101,-420.0,0.00034793,5]
[362015335,1747936263110,-560.76,0.00034793,5]
[362015336,1747936263120,-420.0,0.00034793,5]
[362015337,1747936263130,-420.0,0.00034793,5]
[362015338,1747936263140,-420.0,0.00034793,5]
[362015339,1747936263150,-420.0,0.00034793,5]
[362015340,1747936263160,-420.0,0.00034793,5]
[362015341,1747936263169,-420.0,0.00034793,5]
[362015342,1747936263179,-420.0,0.00034793,5]
[362015343,1747936263188,-420.0,0.00034793,5]
[362015344,1747936263197,-420.0,0.00034793,5]
[362015345,1747936263207,-150.0,0.00034793,2]
[362015346,1747936263216,-500.0,0.00034793,5]
[362015347,1747936263225,-1442.85274,0.00034794,2]
[362015348,1747936263235,-276.56,0.000348,31]
[362015349,1747936263244,-276.56,0.000348,31]
[362015350,1747936263254,-276.56,0.000348,31]
[362015351,1747936263264,-276.56,0.000348,31]
[362015352,1747936263274,-276.56,0.000348,31]
[362015353,1747936263283,-276.56,0.000348,31]
[362015354,1747936263293,-276.56,0.000348,31]
[362015355,1747936263302,-276.56,0.000348,31]
[362015356,1747936263312,-276.56,0.000348,31]
[362015357,1747936263321,-276.56,0.000348,31]
[362015358,1747936263330,-276.56,0.000348,31]
[362015359,1747936263340,-276.56,0.000348,31]
[362015360,1747936263350,-2169.33148094,0.00034815,2]
[362015361,1747936263359,-500.0,0.0003482,5]
[362015362,1747936263368,-500.0,0.00034848,5]
[362015363,1747936263378,-500.0,0.00034875,5]
[362015364,1747936263387,-20000.0,0.000349,120]
[362015365,1747936263398,-224.0,0.00034903,5]
[362015366,1747936263408,-75853.2503186,0.00034993,2]
[362015367,1747936263417,-5390.9550411,0.00034993,2]
[362015368,1747936263427,-38775.2581007,0.00034993,2]
[362015369,1747936263436,-6660.6127935,0.00034993,2]
[362015370,1747936263446,-1078.81,0.00034996,5]
[362015371,1747936263455,-963.98,0.00034996,5]
[362015372,1747936263464,-1809.84,0.00034996,5]
[362015373,1747936263473,-614.15,0.00034996,5]
[362015374,1747936263482,-420.0,0.00034996,5]
[362015375,1747936263492,-420.0,0.00034996,5]
[362015376,1747936263502,-706.33,0.00034996,5]
[362015377,1747936263511,-436.92,0.00034996,5]
[362015378,1747936263520,-420.0,0.00034996,5]
[362015379,1747936263529,-5458.07,0.00034996,5]
[362015380,1747936263539,-479.75,0.00034996,5]
[362015381,1747936263548,-1120.85,0.00034996,5]
[362015382,1747936263561,-420.0,0.00034996,5]
[362015383,1747936263570,-361273.40930453,0.00035,60]
[362015384,1747936263987,-420.0,0.00033422,5]
[362015385,1747936263997,-420.0,0.00033696,5]
[362015386,1747936264006,-420.0,0.0003397,5]
[362015387,1747936264015,-420.0,0.0003397,5]
[362015388,1747936264024,-420.0,0.00034244,5]
[362015389,1747936264034,-420.0,0.00034244,5]
[362015390,1747936264043,-420.0,0.00034518,5]
[362015391,1747936264052,-420.0,0.00034518,5]
[362015392,1747936264062,-420.0,0.00034792,5]
[362015393,1747936264071,-420.0,0.00034792,5]
[362015394,1747936264080,-47099.86681074,0.00035,60]
[362015395,1747936264095,-132865.13857722,0.00035,60]
[362015396,1747936264106,-77115.9752903,0.00035,60]
[362015397,1747936264121,-11186.0,0.00035,60]
[362015398,1747936264255,-523.51431342,0.00035,60]
[362015404,1747936525819,250.0,0.00015,2]
[362015405,1747936526917,300.0,0.00017,2]
[362015406,1747936528014,350.0,0.00019,2]
[362015407,1747936562829,150.0,0.0002,2]
[362015420,1747937142348,-400.0,0.00021,2]
[362015421,1747937142370,-99.44917215,0.00021,2]
[362015423,1747937155088,-400.55082785,0.00021,2]
[362015424,1747937155110,-450.0,0.00023,2]
[362015425,1747937155135,-90.302518,0.00025,2]
[362015426,1747937232095,-177.76798268,0.00025,2]
[362015431,1747937347089,-300.0,0.00024999,2]
[362015432,1747937347114,-227.05670637,0.00025,2]
[362015433,1747937364085,-4.87279295,0.00025,2]
[362015434,1747937364107,-10000.0,0.00025,2]
[362015441,1747937387575,272.13,0.00013699,2]
[362015442,1747937388271,272.13,0.00020187,2]
[362015443,1747937388303,272.13,0.00026676,2]
[362015461,1747937432342,-550.0,0.00027,2]
[362015462,1747937432352,-600.0,0.00029,2]
[362015463,1747937432362,-500.0,0.00029178,2]
[362015464,1747937432371,-105.3,0.00029703,2]
[362015465,1747937432394,-393.15,0.00029703,2]
[362015466,1747937432404,-150.0,0.00031874,7]
[362015467,1747937432413,-220.75,0.00031925,2]
[362015468,1747937432422,-200.0,0.00031949,2]
[362015469,1747937432431,-498.45,0.00031967,2]
[362015470,1747937432441,-500.0,0.00032301,2]
[362015471,1747937432450,-152.25,0.00032376,2]
[362015472,1747937432460,-162.92,0.00032511,2]
[362015473,1747937432470,-207.4,0.0003268,2]
[362015474,1747937432481,-800.0,0.00032699,3]
[362015475,1747937432491,-400.0,0.00032699,2]
[362015476,1747937432501,-1487.27999998,0.000327,2]
[362015477,1747937432512,-641.60804426,0.000327,2]
[362015478,1747937432526,-801.96195576,0.000327,2]
[362015479,1747937432536,-183.41,0.00032792,120]
[362015480,1747937432546,-129.34164424,0.000329,27]
[362015481,1747937432556,-70.94560849,0.000329,27]
[362015482,1747937432566,-207.44405951,0.00033,2]
[362015483,1747937432714,-2723.40594049,0.00033,2]
[362015484,1747937432724,-1000.0,0.00033002,2]
[362015485,1747937432735,-272.13,0.00033165,2]
[362015486,1747937432745,-321.35882075,0.00033422,5]
[362015487,1747937432754,-420.0,0.00033422,5]
[362015488,1747937432764,-420.0,0.00033422,5]
[362015490,1747937432773,-420.0,0.00033422,5]
[362015492,1747937432782,-420.0,0.00033422,5]
[362015494,1747937432792,-420.0,0.00033422,5]
[362015495,1747937432801,-420.0,0.00033422,5]
[362015497,1747937432812,-420.0,0.00033422,5]
[362015500,1747937432822,-334.68824937,0.00033422,5]
[362015501,1747937432832,-420.0,0.00033422,5]
[362015503,1747937432841,-420.0,0.00033422,5]
[362015505,1747937432851,-420.0,0.00033422,5]
[362015507,1747937432861,-420.0,0.00033422,5]
[362015509,1747937432870,-420.0,0.00033422,5]
[362015511,1747937432880,-59.48785731,0.00033422,5]
[362016020,1747937438274,-162.0,0.00032999,3]
[362016023,1747937438286,-360.51214269,0.00033422,5]
[362016026,1747937438296,-420.0,0.00033422,5]
[362016028,1747937438306,-420.0,0.00033422,5]
[362016031,1747937438316,-420.0,0.00033422,5]
[362016034,1747937438327,-420.0,0.00033422,5]
[362016036,1747937438339,-420.0,0.00033422,5]
[362016039,1747937438349,-420.0,0.00033422,5]
[362016042,1747937438360,-420.0,0.00033422,5]
[362016043,1747937438370,-420.0,0.00033422,5]
[362016045,1747937438380,-420.0,0.00033422,5]
[362016048,1747937438391,-565.0,0.00033422,5]
[362016050,1747937438401,-420.0,0.00033422,5]
[362016052,1747937438412,-420.0,0.00033422,5]
[362016055,1747937438422,-420.0,0.00033422,5]
[362016058,1747937438432,-420.0,0.00033422,5]
[362016061,1747937438441,-420.0,0.00033422,5]
[362016064,1747937438451,-420.0,0.00033422,5]
[362016067,1747937438461,-445.33,0.00033422,5]
[362016070,1747937438470,-420.0,0.00033422,5]
[362016072,1747937438478,-420.0,0.00033422,5]
[362016075,1747937438488,-330.5871699,0.00033422,5]
[362016077,1747937438497,-420.0,0.00033422,5]
[362016080,1747937438507,-420.0,0.00033422,5]
[362016083,1747937438515,-420.0,0.00033422,5]
[362016086,1747937438525,-420.0,0.00033422,5]
[362016089,1747937438534,-420.0,0.00033422,5]
[362016092,1747937438545,-420.0,0.00033422,5]
[362016095,1747937438554,-420.0,0.00033422,5]
[362016098,1747937438564,-420.0,0.00033422,5]
[362016100,1747937438573,-420.0,0.00033422,5]
[362016103,1747937438583,-420.0,0.00033422,5]
[362016106,1747937438592,-448.911378,0.00033422,5]
[362016109,1747937438602,-442.97652648,0.00033422,5]
[362016112,1747937438612,-420.0,0.00033422,5]
[362016115,1747937438621,-420.0,0.00033422,5]
[362016118,1747937438631,-420.0,0.00033422,5]
[362016121,1747937438644,-420.0,0.00033422,5]
[362016124,1747937438654,-420.0,0.00033422,5]
[362016127,1747937438664,-420.0,0.00033422,5]
[362016130,1747937438674,-451.79,0.00033422,5]
[362016133,1747937438685,-420.0,0.00033422,5]
[362016136,1747937438694,-420.0,0.00033422,5]
[362016139,1747937438704,-420.0,0.00033422,5]
[362016142,1747937438713,-420.0,0.00033422,5]
[362016145,1747937438723,-420.0,0.00033422,5]
[362016147,1747937438732,-420.0,0.00033422,5]
[362016149,1747937438742,-420.0,0.00033422,5]
[362016151,1747937438752,-420.0,0.00033422,5]
[362016153,1747937438761,-420.0,0.00033422,5]
[362016155,1747937438772,-420.0,0.00033422,5]
[362016157,1747937438781,-420.0,0.00033422,5]
[362016159,1747937438790,-420.0,0.00033422,5]
[362016161,1747937438800,-420.0,0.00033422,5]
[362016163,1747937438813,-420.0,0.00033422,5]
[362016165,1747937438824,-470.82,0.00033422,5]
[362016167,1747937438835,-420.0,0.00033422,5]
[362016168,1747937438845,-420.0,0.00033422,5]
[362016170,1747937438855,-420.0,0.00033422,5]
[362016171,1747937438864,-420.0,0.00033422,5]
[362016172,1747937438874,-420.0,0.00033422,5]
[362016173,1747937438885,-420.0,0.00033422,5]
[362016174,1747937438896,-420.0,0.00033422,5]
[362016175,1747937438906,-420.0,0.00033422,5]
[362016176,1747937438916,-529.08,0.00033422,5]
[362016177,1747937438926,-420.0,0.00033422,5]
[362016178,1747937438935,-420.0,0.00033422,5]
[362016179,1747937438946,-420.0,0.00033422,5]
[362016180,1747937438958,-420.0,0.00033422,5]
[362016181,1747937438967,-420.0,0.00033422,5]
[362016182,1747937438978,-420.0,0.00033422,5]
[362016183,1747937438989,-420.0,0.00033422,5]
[362016185,1747937438999,-420.0,0.00033422,5]
[362016187,1747937439009,-420.0,0.00033422,5]
[362016189,1747937439018,-420.0,0.00033422,5]
[362016191,1747937439027,-420.0,0.00033422,5]
[362016193,1747937439036,-420.0,0.00033422,5]
[362016195,1747937439045,-420.0,0.00033422,5]
[362016196,1747937439055,-420.0,0.00033422,5]
[362016199,1747937439065,-332.05095736,0.00033563,2]
[362016200,1747937439075,-2930.85,0.000336,2]
[362016202,1747937439085,-420.0,0.00033695,5]
[362016205,1747937439096,-290.72967949,0.00033695,5]
[362016207,1747937439105,-150.812497,0.00033695,5]
[362016209,1747937439115,-420.0,0.00033695,5]
[362016211,1747937439127,-420.0,0.00033695,5]
[362016212,1747937439136,-420.0,0.00033695,5]
[362016214,1747937439146,-420.0,0.00033695,5]
[362016216,1747937439155,-420.0,0.00033695,5]
[362016218,1747937439165,-420.0,0.00033695,5]
[362016220,1747937439174,-614.93,0.00033695,5]
[362016222,1747937439183,-460.73,0.00033695,5]
[362016224,1747937439192,-420.0,0.00033695,5]
[362016226,1747937439202,-421.75,0.00033695,5]
[362016228,1747937439211,-420.0,0.00033695,5]
[362016230,1747937439220,-420.0,0.00033695,5]
[362016232,1747937439230,-420.0,0.00033695,5]
[362016234,1747937439239,-420.0,0.00033695,5]
[362016236,1747937439249,-451.26,0.00033695,5]
[362016238,1747937439259,-420.0,0.00033695,5]
[362016240,1747937439269,-1689.02,0.00033695,5]
[362016242,1747937439278,-420.0,0.00033695,5]
[362016244,1747937439287,-353.69653827,0.00033695,5]
[362016249,1747937439328,-43.19549384,0.00033695,5]
[362016251,1747937439338,-420.0,0.00033695,5]
[362016254,1747937439352,-420.0,0.00033695,5]
[362016256,1747937439365,-420.0,0.00033695,5]
[362016258,1747937439375,-420.0,0.00033695,5]
[362016260,1747937439384,-671.16,0.00033695,5]
[362016261,1747937439393,-387.33383292,0.00033695,5]
[362016263,1747937439403,-420.0,0.00033695,5]
[362016266,1747937439413,-420.0,0.00033695,5]
[362016268,1747937439422,-420.0,0.00033695,5]
[362016270,1747937439432,-420.0,0.00033695,5]
[362016271,1747937439441,-420.0,0.00033695,5]
[362016273,1747937439451,-421.39,0.00033695,5]
[362016275,1747937439460,-420.0,0.00033695,5]
[362016277,1747937439470,-420.0,0.00033695,5]
[362016279,1747937439479,-420.0,0.00033695,5]
[362016281,1747937439488,-420.0,0.00033695,5]
[362016283,1747937439497,-1814.1,0.00033695,5]
[362016285,1747937439507,-420.0,0.00033695,5]
[362016287,1747937439516,-420.0,0.00033695,5]
[362016289,1747937439530,-420.0,0.00033695,5]
[362016291,1747937439539,-420.0,0.00033695,5]
[362016293,1747937439548,-420.0,0.00033696,5]
[362016295,1747937439558,-420.0,0.00033696,5]
[362016297,1747937439567,-420.0,0.00033696,5]
[362016299,1747937439577,-420.0,0.00033696,5]
[362016301,1747937439587,-420.0,0.00033696,5]
[362016304,1747937439597,-420.0,0.00033696,5]
[362016306,1747937439607,-420.0,0.00033696,5]
[362016308,1747937439616,-420.0,0.00033696,5]
[362016309,1747937439626,-420.0,0.00033696,5]
[362016311,1747937439635,-420.0,0.00033696,5]
[362016313,1747937439645,-420.0,0.00033696,5]
[362016315,1747937439655,-420.0,0.00033696,5]
[362016317,1747937439664,-420.0,0.00033696,5]
[362016319,1747937439673,-390.22,0.00033696,5]
[362016321,1747937439683,-420.0,0.00033696,5]
[362016323,1747937439692,-420.0,0.00033696,5]
[362016325,1747937439701,-420.0,0.00033696,5]
[362016327,1747937439711,-420.0,0.00033696,5]
[362016329,1747937439721,-420.0,0.00033696,5]
[362016331,1747937439730,-181.77448323,0.00033696,5]
[362016333,1747937439743,-306.74175511,0.00033696,5]
[362016336,1747937439752,-420.0,0.00033696,5]
[362016338,1747937439762,-345.60824489,0.00033696,5]
[362016340,1747937439773,-74.39175511,0.00033696,5]
[362016342,1747937439782,-420.0,0.00033696,5]
[362016344,1747937439792,-420.0,0.00033696,5]
[362016346,1747937439801,-115.60824489,0.00033696,5]
[362016348,1747937439813,-304.39175511,0.00033696,5]
[362016350,1747937439823,-420.0,0.00033696,5]
[362016352,1747937439832,-420.0,0.00033696,5]
[362016354,1747937439842,-420.0,0.00033696,5]
[362016356,1747937439852,-225.85824489,0.00033696,5]
[362016359,1747937439869,-290.87039887,0.00033696,5]
[362016361,1747937439879,-420.0,0.00033696,5]
[362016362,1747937439888,-451.79,0.00033696,5]
[362016364,1747937439898,-420.0,0.00033696,5]
[362016366,1747937439908,-420.0,0.00033696,5]
[362016369,1747937439917,-420.0,0.00033696,5]
[362016371,1747937439927,-29.47303504,0.00033696,5]
[362016374,1747937439956,-390.52696496,0.00033696,5]
[362016376,1747937439966,-420.0,0.00033696,5]
[362016378,1747937439976,-420.0,0.00033696,5]
[362016380,1747937439988,-420.0,0.00033696,5]
[362016382,1747937440001,-420.0,0.00033696,5]
[362016384,1747937440011,-420.0,0.00033696,5]
[362016386,1747937440023,-169.60018779,0.00033696,5]
[362016388,1747937440033,-420.0,0.00033696,5]
[362016390,1747937440044,-420.0,0.00033696,5]
[362016392,1747937440053,-420.0,0.00033696,5]
[362016394,1747937440063,-420.0,0.00033696,5]
[362016397,1747937440072,-420.0,0.00033696,5]
[362016400,1747937440081,-420.0,0.00033696,5]
[362016403,1747937440090,-420.0,0.00033696,5]
[362016406,1747937440100,-420.0,0.00033696,5]
[362016408,1747937440110,-420.0,0.00033696,5]
[362016411,1747937440119,-420.0,0.00033696,5]
[362016414,1747937440129,-420.0,0.00033696,5]
[362016417,1747937440138,-529.08,0.00033696,5]
[362016420,1747937440148,-420.0,0.00033696,5]
[362016422,1747937440158,-420.0,0.00033696,5]
[362016424,1747937440168,-420.0,0.00033696,5]
[362016426,1747937440178,-420.0,0.00033696,5]
[362016429,1747937440188,-420.0,0.00033696,5]
[362016432,1747937440197,-420.0,0.00033696,5]
[362016434,1747937440206,-420.0,0.00033696,5]
[362016436,1747937440215,-420.0,0.00033696,5]
[362016438,1747937440225,-420.0,0.00033696,5]
[362016440,1747937440235,-420.0,0.00033696,5]
[362016443,1747937440245,-420.0,0.00033696,5]
[362016446,1747937440254,-420.0,0.00033696,5]
[362016449,1747937440264,-420.0,0.00033696,5]
[362016452,1747937440273,-420.0,0.00033696,5]
[362016455,1747937440283,-5196.04,0.00033698,2]
[362016458,1747937440293,-5196.04,0.00033698,2]
[362016461,1747937440303,-5196.04,0.00033698,2]
[362016464,1747937440313,-5196.04,0.00033698,2]
[362016465,1747937440323,-5196.04,0.00033698,2]
[362016467,1747937440333,-5196.04,0.00033698,2]
[362016468,1747937440343,-5196.04,0.00033698,2]
[362016469,1747937440354,-5196.04,0.00033698,2]
[362016470,1747937440364,-3024.7807709,0.00033698,2]
[362016486,1747937440658,-263.73,0.00033698,2]
[362016489,1747937440679,-384.47178802,0.00033698,2]
[362016495,1747937440725,-1523.05744108,0.00033698,2]
[362016497,1747937440735,-3518.01739014,0.00033698,2]
[362016499,1747937440746,-812.76043858,0.00033698,2]
[362016503,1747937440778,-865.26217128,0.00033698,2]
[362016505,1747937440787,-5196.04,0.00033698,2]
[362016507,1747937440797,-5196.04,0.00033698,2]
[362016509,1747937440807,-5196.04,0.00033698,2]
[362016512,1747937440822,-5196.04,0.00033698,2]
[362016514,1747937440833,-5196.04,0.00033698,2]
[362016516,1747937440842,-5196.04,0.00033698,2]
[362016518,1747937440852,-5196.04,0.00033698,2]
[362016520,1747937440862,-5196.04,0.00033698,2]
[362016523,1747937440872,-5196.04,0.00033698,2]
[362016525,1747937440883,-5196.05247402,0.00033698,2]
[362016527,1747937440892,-200.28725259,0.000337,29]
[362016529,1747937440902,-167.71,0.00033771,2]
[362016532,1747937440911,-5174.48306725,0.00033869,2]
[362016534,1747937440920,-153.526828,0.00033949,4]
[362016537,1747937440930,-236.78483843,0.00033967,7]
[362016540,1747937440940,-420.0,0.00033967,5]
[362016542,1747937440950,-635.62,0.00033967,5]
[362016544,1747937440960,-420.0,0.00033967,5]
[362016546,1747937440969,-420.0,0.00033967,5]
[362016548,1747937440978,-420.0,0.00033967,5]
[362016550,1747937440990,-420.0,0.00033967,5]
[362016552,1747937441001,-420.0,0.00033967,5]
[362016554,1747937441011,-420.0,0.00033967,5]
[362016556,1747937441022,-420.0,0.00033967,5]
[362016558,1747937441032,-420.0,0.00033967,5]
[362016560,1747937441041,-420.0,0.00033967,5]
[362016562,1747937441050,-420.0,0.00033967,5]
[362016564,1747937441060,-420.0,0.00033967,5]
[362016566,1747937441070,-3537.06,0.00033967,2]
[362016568,1747937441081,-420.0,0.00033967,5]
[362016570,1747937441090,-420.0,0.00033967,5]
[362016571,1747937441099,-420.0,0.00033967,5]
[362016572,1747937441109,-420.0,0.00033968,5]
[362016573,1747937441119,-420.0,0.00033968,5]
[362016574,1747937441129,-420.0,0.00033968,5]
[362016575,1747937441139,-420.0,0.00033968,5]
[362016576,1747937441148,-420.0,0.00033968,5]
[362016577,1747937441158,-420.0,0.00033968,5]
[362016578,1747937441167,-499.36,0.00033968,5]
[362016579,1747937441177,-420.0,0.00033968,5]
[362016580,1747937441188,-420.0,0.00033968,5]
[362016581,1747937441198,-420.0,0.00033968,5]
[362016582,1747937441208,-420.0,0.00033968,5]
[362016583,1747937441218,-420.0,0.00033968,5]
[362016584,1747937441228,-420.0,0.00033968,5]
[362016585,1747937441238,-420.0,0.00033968,5]
[362016587,1747937441248,-420.0,0.00033968,5]
[362016589,1747937441258,-420.0,0.00033968,5]
[362016591,1747937441267,-420.0,0.00033968,5]
[362016593,1747937441277,-164.71432362,0.00033968,5]
[362016595,1747937441288,-420.0,0.00033968,5]
[362016597,1747937441298,-420.0,0.00033968,5]
[362016599,1747937441307,-420.0,0.00033968,5]
[362016601,1747937441317,-420.0,0.00033968,5]
[362016603,1747937441326,-420.0,0.00033968,5]
[362016605,1747937441335,-420.0,0.00033968,5]
[362016607,1747937441345,-420.0,0.00033968,5]
[362016609,1747937441354,-420.0,0.00033968,5]
[362016611,1747937441363,-420.0,0.00033968,5]
[362016613,1747937441372,-420.0,0.00033968,5]
[362016615,1747937441381,-420.0,0.00033968,5]
[362016617,1747937441391,-420.0,0.00033968,5]
[362016619,1747937441400,-420.0,0.00033968,5]
[362016621,1747937441410,-420.0,0.00033968,5]
[362016623,1747937441419,-420.0,0.00033968,5]
[362016625,1747937441428,-420.0,0.00033968,5]
[362016627,1747937441437,-489.14,0.00033968,5]
[362016629,1747937441446,-420.0,0.00033968,5]
[362016631,1747937441455,-420.0,0.00033968,5]
[362016633,1747937441465,-488.83,0.00033968,5]
[362016635,1747937441474,-420.0,0.00033968,5]
[362016637,1747937441483,-420.0,0.00033968,5]
[362016639,1747937441492,-420.0,0.00033968,5]
[362016640,1747937441502,-464.81,0.00033968,5]
[362016642,1747937441511,-420.0,0.00033968,5]
[362016644,1747937441520,-420.0,0.00033968,5]
[362016646,1747937441530,-420.0,0.00033968,5]
[362016648,1747937441539,-420.0,0.00033968,5]
[362016650,1747937441548,-420.0,0.00033968,5]
[362016652,1747937441558,-420.0,0.00033968,5]
[362016654,1747937441568,-420.0,0.00033968,5]
[362016656,1747937441579,-420.0,0.00033968,5]
[362016658,1747937441591,-420.0,0.00033968,5]
[362016680,1747937441804,-488.02,0.00033968,5]
[362016682,1747937441816,-420.0,0.00033968,5]
[362016684,1747937441825,-250.0,0.00033968,5]
[362016686,1747937441836,-420.0,0.00033968,5]
[362016688,1747937441846,-457.49,0.00033968,5]
[362016690,1747937441858,-420.0,0.00033968,5]
[362016692,1747937441868,-471.63,0.00033968,5]
[362016694,1747937441878,-420.0,0.00033968,5]
[362016696,1747937441888,-420.0,0.00033968,5]
[362016698,1747937441898,-420.0,0.00033968,5]
[362016700,1747937441908,-420.0,0.00033968,5]
[362016702,1747937441918,-445.53,0.00033968,5]
[362016704,1747937441927,-420.0,0.00033968,5]
[362016706,1747937441937,-420.0,0.00033968,5]
[362016708,1747937441947,-420.0,0.00033968,5]
[362016710,1747937441959,-420.0,0.00033968,5]
[362016712,1747937441968,-420.0,0.00033968,5]
[362016714,1747937441978,-420.0,0.00033968,5]
[362016716,1747937441991,-420.0,0.00033968,5]
[362016718,1747937442001,-420.0,0.00033968,5]
[362016720,1747937442011,-420.0,0.00033968,5]
[362016722,1747937442020,-420.0,0.00033968,5]
[362016724,1747937442030,-420.0,0.00033968,5]
[362016726,1747937442040,-420.0,0.00033968,5]
[362016728,1747937442050,-292.88865672,0.00033968,5]
[362016751,1747937442280,-127.11134328,0.00033968,5]
[362016753,1747937442291,-420.0,0.00033968,5]
[362016755,1747937442302,-588.31,0.00033968,5]
[362016757,1747937442312,-420.0,0.00033968,5]
[362016759,1747937442323,-420.0,0.00033968,5]
[362016761,1747937442333,-420.0,0.00033968,5]
[362016763,1747937442343,-420.0,0.00033968,5]
[362016765,1747937442353,-420.0,0.00033968,5]
[362016767,1747937442363,-420.0,0.00033968,5]
[362016769,1747937442372,-420.0,0.00033968,5]
[362016771,1747937442381,-420.0,0.00033968,5]
[362016773,1747937442391,-420.0,0.00033968,5]
[362016775,1747937442404,-420.0,0.00033968,5]
[362016777,1747937442416,-374.96230998,0.00033968,5]
[362016779,1747937442427,-420.0,0.00033968,5]
[362016781,1747937442439,-420.0,0.00033968,5]
[362016783,1747937442450,-420.0,0.00033968,5]
[362016785,1747937442461,-420.0,0.00033968,5]
[362016787,1747937442472,-241.37084923,0.00033968,5]
[362016789,1747937442482,-420.0,0.00033968,5]
[362016791,1747937442496,-420.0,0.00033968,5]
[362016793,1747937442506,-420.0,0.00033968,5]
[362016795,1747937442516,-420.0,0.00033968,5]
[362016797,1747937442527,-420.0,0.00033968,5]
[362016799,1747937442536,-420.0,0.00033968,5]
[362016801,1747937442546,-533.21428469,0.00033968,5]